[Event "Titled Tuesday Blitz August 08 Late 2023"]
[White "Przybylski, Wojciech"]
[Black "Mekhitarian, Krikor Sevag"]
[WhiteFideId "1117599"]
[BlackFideId "2107660"]
[WhiteElo "2571"]
[BlackElo "2751"]
[Result "0-1"]
[Round "9"]
[TimeControl "180+1"]
[Date "2023.08.08"]
[WhiteClock "0:00:03"]
[BlackClock "0:00:26"]
[Board "29"]

1. d4 {[%clk 0:03:00]}  Nf6 {[%clk 0:02:58]} 2. g3 {[%clk 0:03:00]}  g6 {[%clk 0:02:56]} 3. Bg2 {[%clk 0:03:00]}  d5 {[%clk 0:02:56]} 4. Nf3 {[%clk 0:03:00]}  Bg7 {[%clk 0:02:56]} 5. O-O {[%clk 0:03:00]}  O-O {[%clk 0:02:55]} 6. Re1 {[%clk 0:02:59]}  c5 {[%clk 0:02:54]} 7. c3 {[%clk 0:02:59]}  Nbd7 {[%clk 0:02:53]} 8. Bf4 {[%clk 0:02:57]}  b6 {[%clk 0:02:53]} 9. a4 {[%clk 0:02:56]}  Bb7 {[%clk 0:02:52]} 10. Nbd2 {[%clk 0:02:55]}  e6 {[%clk 0:02:37]} 11. a5 {[%clk 0:02:50]}  Re8 {[%clk 0:02:36]} 12. a6 {[%clk 0:02:48]}  Bc6 {[%clk 0:02:34]} 13. h3 {[%clk 0:02:43]}  b5 {[%clk 0:02:34]} 14. Ne5 {[%clk 0:02:39]}  Nxe5 {[%clk 0:02:34]} 15. Bxe5 {[%clk 0:02:38]}  c4 {[%clk 0:02:21]} 16. b4 {[%clk 0:02:33]}  cxb3 {[%clk 0:02:02]} 17. Qxb3 {[%clk 0:02:31]}  Bh6 {[%clk 0:01:49]} 18. e3 {[%clk 0:02:25]}  Nd7 {[%clk 0:01:48]} 19. Bd6 {[%clk 0:02:25]}  Nb6 {[%clk 0:01:34]} 20. Bc5 {[%clk 0:02:14]}  Na4 {[%clk 0:01:34]} 21. Bb4 {[%clk 0:02:08]}  Qb6 {[%clk 0:01:33]} 22. f4 {[%clk 0:01:55]}  Qxa6 {[%clk 0:01:29]} 23. e4 {[%clk 0:01:50]}  dxe4 {[%clk 0:01:11]} 24. Nxe4 {[%clk 0:01:49]}  Bxe4 {[%clk 0:01:06]} 25. Bxe4 {[%clk 0:01:44]}  Rac8 {[%clk 0:01:06]} 26. h4 {[%clk 0:01:34]}  Qb6 {[%clk 0:01:05]} 27. Kg2 {[%clk 0:01:32]}  a5 {[%clk 0:01:00]} 28. Bc5 {[%clk 0:01:19]}  Nxc5 {[%clk 0:01:00]} 29. dxc5 {[%clk 0:01:19]}  Rxc5 {[%clk 0:01:01]} 30. Re3 {[%clk 0:01:00]}  Bg7 {[%clk 0:00:59]} 31. Rb1 {[%clk 0:00:34]}  Qc7 {[%clk 0:00:57]} 32. Bd3 {[%clk 0:00:27]}  Rb8 {[%clk 0:00:53]} 33. Be2 {[%clk 0:00:24]}  Qc6+ {[%clk 0:00:48]} 34. Bf3 {[%clk 0:00:24]}  Qc7 {[%clk 0:00:49]} 35. Rc1 {[%clk 0:00:24]}  a4 {[%clk 0:00:46]} 36. Qa3 {[%clk 0:00:23]}  Rc8 {[%clk 0:00:39]} 37. Be2 {[%clk 0:00:21]}  Bxc3 {[%clk 0:00:37]} 38. Bxb5 {[%clk 0:00:12]}  Bb4 {[%clk 0:00:28]} 39. Rxc5 {[%clk 0:00:09]}  Bxc5 {[%clk 0:00:29]} 40. Qd3 {[%clk 0:00:06]}  Bxe3 {[%clk 0:00:29]} 41. Qxe3 {[%clk 0:00:06]}  Qb7+ {[%clk 0:00:29]} 42. Kh2 {[%clk 0:00:06]}  Qxb5 {[%clk 0:00:29]} 43. Qd2 {[%clk 0:00:06]}  a3 {[%clk 0:00:27]} 44. Qd7 {[%clk 0:00:03]}  Qxd7 {[%clk 0:00:26]} 0-1


[Site "https://www.chess.com"]

[Event "Titled Tuesday Blitz August 08 Late 2023"]
[White "Hnydiuk, Aleksander"]
[Black "Aradhya, Garg"]
[WhiteFideId "1109057"]
[BlackFideId "25006746"]
[WhiteElo "2554"]
[BlackElo "2738"]
[Result "1-0"]
[Round "9"]
[TimeControl "180+1"]
[Date "2023.08.08"]
[WhiteClock "0:00:18"]
[BlackClock "0:00:04"]
[Board "30"]

1. d4 {[%clk 0:03:00]}  d5 {[%clk 0:02:59]} 2. c4 {[%clk 0:03:00]}  e6 {[%clk 0:03:00]} 3. Nc3 {[%clk 0:03:00]}  Nf6 {[%clk 0:03:00]} 4. Bg5 {[%clk 0:03:00]}  Be7 {[%clk 0:03:00]} 5. Nf3 {[%clk 0:03:00]}  h6 {[%clk 0:02:57]} 6. Bxf6 {[%clk 0:02:56]}  Bxf6 {[%clk 0:02:57]} 7. e3 {[%clk 0:02:56]}  O-O {[%clk 0:02:54]} 8. Qd2 {[%clk 0:02:55]}  c5 {[%clk 0:02:54]} 9. dxc5 {[%clk 0:02:53]}  dxc4 {[%clk 0:02:54]} 10. Bxc4 {[%clk 0:02:50]}  Qa5 {[%clk 0:02:36]} 11. Ne4 {[%clk 0:02:17]}  Qxd2+ {[%clk 0:02:35]} 12. Nfxd2 {[%clk 0:02:17]}  Bxb2 {[%clk 0:02:35]} 13. Rb1 {[%clk 0:02:18]}  Be5 {[%clk 0:02:25]} 14. Ke2 {[%clk 0:02:17]}  Nd7 {[%clk 0:02:16]} 15. Rhc1 {[%clk 0:02:09]}  Bc7 {[%clk 0:02:05]} 16. f4 {[%clk 0:02:04]}  Rd8 {[%clk 0:01:53]} 17. Bd3 {[%clk 0:01:58]}  Kf8 {[%clk 0:01:37]} 18. Nc4 {[%clk 0:01:56]}  Ke7 {[%clk 0:01:35]} 19. g4 {[%clk 0:01:38]}  Nf6 {[%clk 0:01:34]} 20. Nxf6 {[%clk 0:01:34]}  gxf6 {[%clk 0:01:33]} 21. Be4 {[%clk 0:01:32]}  Rb8 {[%clk 0:01:34]} 22. Rc3 {[%clk 0:01:18]}  Rg8 {[%clk 0:00:32]} 23. Bf3 {[%clk 0:01:17]}  Bd7 {[%clk 0:00:18]} 24. Rcb3 {[%clk 0:01:10]}  Bc6 {[%clk 0:00:11]} 25. Bxc6 {[%clk 0:01:09]}  bxc6 {[%clk 0:00:12]} 26. Rb7 {[%clk 0:01:09]}  Kd7 {[%clk 0:00:11]} 27. Rd1+ {[%clk 0:01:07]}  Kc8 {[%clk 0:00:10]} 28. Rxa7 {[%clk 0:01:05]}  Rb7 {[%clk 0:00:10]} 29. Ra6 {[%clk 0:00:53]}  Rb4 {[%clk 0:00:07]} 30. Rd4 {[%clk 0:00:44]}  Kb7 {[%clk 0:00:06]} 31. Ra3 {[%clk 0:00:39]}  Rb5 {[%clk 0:00:05]} 32. Rd7 {[%clk 0:00:30]}  Rxg4 {[%clk 0:00:04]} 33. Nd6+ {[%clk 0:00:28]}  Kb8 {[%clk 0:00:04]} 34. Nxb5 {[%clk 0:00:28]}  cxb5 {[%clk 0:00:05]} 35. Rb3 {[%clk 0:00:26]}  Kc8 {[%clk 0:00:05]} 36. Rxf7 {[%clk 0:00:25]}  Rg2+ {[%clk 0:00:06]} 37. Kf3 {[%clk 0:00:26]}  Rxa2 {[%clk 0:00:07]} 38. Rxb5 {[%clk 0:00:24]}  Rxh2 {[%clk 0:00:07]} 39. c6 {[%clk 0:00:24]}  f5 {[%clk 0:00:06]} 40. Rb7 {[%clk 0:00:23]}  Bd8 {[%clk 0:00:06]} 41. Ra7 {[%clk 0:00:21]}  Rb2 {[%clk 0:00:05]} 42. Ra8+ {[%clk 0:00:20]}  Rb8 {[%clk 0:00:04]} 43. Rxb8+ {[%clk 0:00:20]}  Kxb8 {[%clk 0:00:05]} 44. Ke2 {[%clk 0:00:19]}  Kc8 {[%clk 0:00:05]} 45. Rh7 {[%clk 0:00:19]}  Bb6 {[%clk 0:00:04]} 46. Rxh6 {[%clk 0:00:18]}  Kc7 {[%clk 0:00:04]} 47. Rxe6 {[%clk 0:00:18]} 1-0


[Site "https://www.chess.com"]

[Event "Titled Tuesday Blitz August 08 Late 2023"]
[White "reevecanada"]
[Black "Do Valle Cardoso, Lucas"]
[BlackFideId "2163144"]
[WhiteElo "2552"]
[BlackElo "2729"]
[Result "0-1"]
[Round "9"]
[TimeControl "180+1"]
[Date "2023.08.08"]
[WhiteClock "0:00:41"]
[BlackClock "0:02:02"]
[Board "32"]

1. e4 {[%clk 0:03:00]}  e5 {[%clk 0:03:00]} 2. Nf3 {[%clk 0:03:00]}  Nc6 {[%clk 0:02:59]} 3. d4 {[%clk 0:02:56]}  exd4 {[%clk 0:02:59]} 4. Nxd4 {[%clk 0:02:56]}  Nf6 {[%clk 0:02:59]} 5. Nxc6 {[%clk 0:02:56]}  bxc6 {[%clk 0:03:00]} 6. Nd2 {[%clk 0:02:56]}  d5 {[%clk 0:03:00]} 7. exd5 {[%clk 0:02:55]}  cxd5 {[%clk 0:03:00]} 8. Bb5+ {[%clk 0:02:55]}  Bd7 {[%clk 0:03:00]} 9. Bxd7+ {[%clk 0:02:56]}  Qxd7 {[%clk 0:03:01]} 10. O-O {[%clk 0:02:56]}  Be7 {[%clk 0:02:59]} 11. Re1 {[%clk 0:02:56]}  O-O {[%clk 0:03:00]} 12. b3 {[%clk 0:02:57]}  Bc5 {[%clk 0:02:49]} 13. Bb2 {[%clk 0:02:48]}  Ng4 {[%clk 0:02:49]} 14. Rf1 {[%clk 0:02:42]}  Rfe8 {[%clk 0:02:48]} 15. h3 {[%clk 0:02:40]}  Nh6 {[%clk 0:02:48]} 16. Nf3 {[%clk 0:02:39]}  Nf5 {[%clk 0:02:46]} 17. Qd2 {[%clk 0:02:38]}  Ng3 {[%clk 0:02:45]} 18. Qg5 {[%clk 0:02:14]}  Ne2+ {[%clk 0:02:40]} 19. Kh1 {[%clk 0:02:13]}  f6 {[%clk 0:02:26]} 20. Bxf6 {[%clk 0:02:08]}  h6 {[%clk 0:02:25]} 21. Qg6 {[%clk 0:01:13]}  Nf4 {[%clk 0:02:25]} 22. Qg3 {[%clk 0:00:57]}  Nh5 {[%clk 0:02:21]} 23. Qh4 {[%clk 0:00:55]}  Nxf6 {[%clk 0:02:21]} 24. Rad1 {[%clk 0:00:55]}  Re4 {[%clk 0:02:16]} 25. g4 {[%clk 0:00:54]}  Rae8 {[%clk 0:02:10]} 26. Qg3 {[%clk 0:00:53]}  Bd6 {[%clk 0:02:10]} 27. Qg2 {[%clk 0:00:53]}  c6 {[%clk 0:02:08]} 28. Nh4 {[%clk 0:00:50]}  Nxg4 {[%clk 0:02:05]} 29. Rg1 {[%clk 0:00:44]}  Nxf2+ {[%clk 0:02:01]} 30. Qxf2 {[%clk 0:00:41]}  Qxh3+ {[%clk 0:02:02]} 31. Qh2 {[%clk 0:00:41]}  Qxh2# {[%clk 0:02:02]} 0-1


[Site "https://www.chess.com"]

[Event "Titled Tuesday Blitz August 08 Late 2023"]
[White "Kozusek, Daniel"]
[Black "Prohaszka, Peter"]
[WhiteFideId "349500"]
[BlackFideId "726265"]
[WhiteElo "2544"]
[BlackElo "2716"]
[Result "0-1"]
[Round "9"]
[TimeControl "180+1"]
[Date "2023.08.08"]
[WhiteClock "0:00:04"]
[BlackClock "0:00:17"]
[Board "33"]

1. d4 {[%clk 0:03:00]}  d5 {[%clk 0:02:56]} 2. Nf3 {[%clk 0:02:56]}  Nf6 {[%clk 0:02:32]} 3. c3 {[%clk 0:02:54]}  c5 {[%clk 0:02:30]} 4. dxc5 {[%clk 0:02:54]}  e6 {[%clk 0:02:30]} 5. b4 {[%clk 0:02:54]}  a5 {[%clk 0:02:31]} 6. e3 {[%clk 0:02:52]}  axb4 {[%clk 0:02:31]} 7. cxb4 {[%clk 0:02:52]}  b6 {[%clk 0:02:32]} 8. a4 {[%clk 0:02:52]}  bxc5 {[%clk 0:02:32]} 9. b5 {[%clk 0:02:52]}  Nbd7 {[%clk 0:02:31]} 10. Bb2 {[%clk 0:02:52]}  Bb7 {[%clk 0:02:24]} 11. Nbd2 {[%clk 0:02:48]}  Qc7 {[%clk 0:02:21]} 12. Qc2 {[%clk 0:02:29]}  Bd6 {[%clk 0:02:19]} 13. e4 {[%clk 0:02:25]}  c4 {[%clk 0:02:11]} 14. exd5 {[%clk 0:02:19]}  exd5 {[%clk 0:02:10]} 15. Be2 {[%clk 0:02:09]}  O-O {[%clk 0:02:06]} 16. O-O {[%clk 0:02:07]}  Rfe8 {[%clk 0:02:06]} 17. Rfe1 {[%clk 0:02:04]}  h6 {[%clk 0:01:42]} 18. Qc3 {[%clk 0:01:48]}  Ne5 {[%clk 0:01:36]} 19. a5 {[%clk 0:01:44]}  Neg4 {[%clk 0:01:15]} 20. Nf1 {[%clk 0:01:29]}  Nxf2 {[%clk 0:01:07]} 21. Ng3 {[%clk 0:00:52]}  Bc5 {[%clk 0:01:01]} 22. Kf1 {[%clk 0:00:33]}  N2g4 {[%clk 0:00:49]} 23. Nd4 {[%clk 0:00:26]}  Re3 {[%clk 0:00:45]} 24. Qd2 {[%clk 0:00:15]}  Nxh2+ {[%clk 0:00:44]} 25. Kg1 {[%clk 0:00:15]}  Qxg3 {[%clk 0:00:44]} 26. a6 {[%clk 0:00:14]}  Bc8 {[%clk 0:00:29]} 27. Kh1 {[%clk 0:00:12]}  Nhg4 {[%clk 0:00:22]} 28. Bxg4 {[%clk 0:00:06]}  Nxg4 {[%clk 0:00:23]} 29. Nf3 {[%clk 0:00:07]}  Rxf3 {[%clk 0:00:17]} 30. Re8+ {[%clk 0:00:06]}  Kh7 {[%clk 0:00:18]} 31. gxf3 {[%clk 0:00:04]}  Qh3+ {[%clk 0:00:17]} 0-1


[Site "https://www.chess.com"]

[Event "Titled Tuesday Blitz August 08 Late 2023"]
[White "Alex_Sahakyan2006"]
[Black "ArtemDyachuk"]
[WhiteElo "2713"]
[BlackElo "2549"]
[Result "1-0"]
[Round "9"]
[TimeControl "180+1"]
[Date "2023.08.08"]
[WhiteClock "0:00:37"]
[BlackClock "0:00:01"]
[Board "34"]

1. d4 {[%clk 0:03:00]}  Nf6 {[%clk 0:02:59]} 2. Nf3 {[%clk 0:03:01]}  e6 {[%clk 0:03:00]} 3. c4 {[%clk 0:03:00]}  c5 {[%clk 0:03:00]} 4. d5 {[%clk 0:02:57]}  d6 {[%clk 0:02:59]} 5. Nc3 {[%clk 0:02:56]}  exd5 {[%clk 0:03:00]} 6. cxd5 {[%clk 0:02:57]}  g6 {[%clk 0:03:00]} 7. Bf4 {[%clk 0:02:52]}  Bg7 {[%clk 0:03:01]} 8. e3 {[%clk 0:02:53]}  O-O {[%clk 0:03:00]} 9. h3 {[%clk 0:02:53]}  Ne8 {[%clk 0:02:58]} 10. Be2 {[%clk 0:02:52]}  Nd7 {[%clk 0:02:58]} 11. O-O {[%clk 0:02:52]}  Ne5 {[%clk 0:02:59]} 12. Nxe5 {[%clk 0:02:51]}  dxe5 {[%clk 0:02:58]} 13. Bg3 {[%clk 0:02:52]}  Nd6 {[%clk 0:02:56]} 14. a4 {[%clk 0:02:50]}  Qg5 {[%clk 0:02:30]} 15. Nb5 {[%clk 0:02:33]}  Nf5 {[%clk 0:02:25]} 16. Bh2 {[%clk 0:02:26]}  Nh4 {[%clk 0:02:25]} 17. g3 {[%clk 0:02:27]}  Bxh3 {[%clk 0:02:24]} 18. f4 {[%clk 0:02:26]}  Qe7 {[%clk 0:02:05]} 19. gxh4 {[%clk 0:02:25]}  Bxf1 {[%clk 0:02:04]} 20. Bxf1 {[%clk 0:02:26]}  Qxh4 {[%clk 0:01:58]} 21. fxe5 {[%clk 0:02:25]}  Bxe5 {[%clk 0:01:53]} 22. Bxe5 {[%clk 0:02:22]}  Qg5+ {[%clk 0:01:53]} 23. Bg2 {[%clk 0:02:23]}  Qxe5 {[%clk 0:01:53]} 24. Qd2 {[%clk 0:02:22]}  a6 {[%clk 0:01:40]} 25. Nc3 {[%clk 0:02:20]}  Rad8 {[%clk 0:01:40]} 26. a5 {[%clk 0:02:20]}  Rfe8 {[%clk 0:01:39]} 27. Re1 {[%clk 0:02:18]}  f5 {[%clk 0:01:21]} 28. Na4 {[%clk 0:02:09]}  f4 {[%clk 0:00:56]} 29. e4 {[%clk 0:01:46]}  Rf8 {[%clk 0:00:50]} 30. Bf3 {[%clk 0:01:45]}  g5 {[%clk 0:00:28]} 31. Nxc5 {[%clk 0:01:40]}  g4 {[%clk 0:00:28]} 32. Bxg4 {[%clk 0:01:38]}  f3 {[%clk 0:00:18]} 33. Kf2 {[%clk 0:01:38]}  Qh2+ {[%clk 0:00:15]} 34. Ke3 {[%clk 0:01:38]}  f2 {[%clk 0:00:13]} 35. Be6+ {[%clk 0:01:38]}  Kg7 {[%clk 0:00:12]} 36. Rf1 {[%clk 0:01:30]}  Qg3+ {[%clk 0:00:11]} 37. Kd4 {[%clk 0:01:29]}  Qg2 {[%clk 0:00:09]} 38. Nd3 {[%clk 0:01:15]}  Rf6 {[%clk 0:00:06]} 39. Rxf2 {[%clk 0:01:11]}  Qg1 {[%clk 0:00:06]} 40. Kc3 {[%clk 0:01:00]}  Rxf2 {[%clk 0:00:06]} 41. Nxf2 {[%clk 0:00:59]}  h5 {[%clk 0:00:06]} 42. Qd4+ {[%clk 0:00:57]}  Kh7 {[%clk 0:00:04]} 43. Bf5+ {[%clk 0:00:57]}  Kg8 {[%clk 0:00:05]} 44. Nh3 {[%clk 0:00:53]}  Qg3+ {[%clk 0:00:04]} 45. Qd3 {[%clk 0:00:50]}  Qe5+ {[%clk 0:00:04]} 46. Kb3 {[%clk 0:00:50]}  b6 {[%clk 0:00:03]} 47. Qc3 {[%clk 0:00:47]}  Qd6 {[%clk 0:00:02]} 48. Be6+ {[%clk 0:00:41]}  Kh7 {[%clk 0:00:01]} 49. Bf5+ {[%clk 0:00:39]}  Kg8 {[%clk 0:00:01]} 50. Ng5 {[%clk 0:00:39]}  Qe7 {[%clk 0:00:01]} 51. Be6+ {[%clk 0:00:38]}  Kf8 {[%clk 0:00:01]} 52. Qh8# {[%clk 0:00:37]} 1-0


[Site "https://www.chess.com"]

[Event "Titled Tuesday Blitz August 08 Late 2023"]
[White "Hoang, Thi Bao Tram"]
[Black "ATM622"]
[WhiteFideId "12401102"]
[WhiteElo "2677"]
[BlackElo "2527"]
[Result "1-0"]
[Round "9"]
[TimeControl "180+1"]
[Date "2023.08.08"]
[WhiteClock "0:00:25"]
[BlackClock "0:00:00"]
[Board "36"]

1. Nf3 {[%clk 0:03:00]}  Nf6 {[%clk 0:02:58]} 2. g3 {[%clk 0:03:00]}  g6 {[%clk 0:02:55]} 3. Bg2 {[%clk 0:03:00]}  Bg7 {[%clk 0:02:56]} 4. O-O {[%clk 0:03:01]}  O-O {[%clk 0:02:56]} 5. d4 {[%clk 0:03:01]}  d5 {[%clk 0:02:56]} 6. c4 {[%clk 0:03:01]}  c6 {[%clk 0:02:56]} 7. cxd5 {[%clk 0:03:00]}  cxd5 {[%clk 0:02:56]} 8. Ne5 {[%clk 0:03:01]}  Nc6 {[%clk 0:02:55]} 9. Nxc6 {[%clk 0:03:00]}  bxc6 {[%clk 0:02:55]} 10. Nc3 {[%clk 0:03:01]}  Bf5 {[%clk 0:02:54]} 11. Bf4 {[%clk 0:02:55]}  Nh5 {[%clk 0:02:51]} 12. Be3 {[%clk 0:02:53]}  e5 {[%clk 0:02:48]} 13. Rc1 {[%clk 0:02:45]}  e4 {[%clk 0:02:37]} 14. Na4 {[%clk 0:02:42]}  Rc8 {[%clk 0:02:23]} 15. Qd2 {[%clk 0:02:42]}  Nf6 {[%clk 0:02:20]} 16. h3 {[%clk 0:02:07]}  Qe7 {[%clk 0:02:01]} 17. Rc2 {[%clk 0:01:57]}  h5 {[%clk 0:01:52]} 18. Rfc1 {[%clk 0:01:51]}  h4 {[%clk 0:01:30]} 19. g4 {[%clk 0:01:50]}  Bxg4 {[%clk 0:01:24]} 20. hxg4 {[%clk 0:01:48]}  Nxg4 {[%clk 0:01:25]} 21. Rxc6 {[%clk 0:01:43]}  Rxc6 {[%clk 0:01:18]} 22. Rxc6 {[%clk 0:01:43]}  f5 {[%clk 0:01:18]} 23. Bf4 {[%clk 0:01:38]}  h3 {[%clk 0:01:03]} 24. Rc7 {[%clk 0:01:16]}  Qh4 {[%clk 0:00:59]} 25. Bg3 {[%clk 0:01:06]}  h2+ {[%clk 0:00:39]} 26. Kh1 {[%clk 0:01:05]}  e3 {[%clk 0:00:34]} 27. Bxh4 {[%clk 0:00:55]}  exd2 {[%clk 0:00:34]} 28. Nc3 {[%clk 0:00:55]}  Bxd4 {[%clk 0:00:34]} 29. Nd1 {[%clk 0:00:55]}  Bxf2 {[%clk 0:00:22]} 30. Bxf2 {[%clk 0:00:53]}  Nxf2+ {[%clk 0:00:20]} 31. Nxf2 {[%clk 0:00:53]}  Rb8 {[%clk 0:00:19]} 32. b3 {[%clk 0:00:49]}  Re8 {[%clk 0:00:18]} 33. Bf3 {[%clk 0:00:49]}  d4 {[%clk 0:00:16]} 34. Kxh2 {[%clk 0:00:47]}  Re3 {[%clk 0:00:11]} 35. Kg2 {[%clk 0:00:45]}  Rc3 {[%clk 0:00:10]} 36. Rd7 {[%clk 0:00:43]}  Rc2 {[%clk 0:00:07]} 37. a4 {[%clk 0:00:39]}  Rb2 {[%clk 0:00:02]} 38. Rxd4 {[%clk 0:00:39]}  Kg7 {[%clk 0:00:02]} 39. Bd5 {[%clk 0:00:34]}  Kh6 {[%clk 0:00:02]} 40. Bc4 {[%clk 0:00:34]}  Rc2 {[%clk 0:00:02]} 41. Nd1 {[%clk 0:00:30]}  Kg5 {[%clk 0:00:02]} 42. Ne3 {[%clk 0:00:30]}  Rb2 {[%clk 0:00:01]} 43. Kf3 {[%clk 0:00:27]}  f4 {[%clk 0:00:02]} 44. Rxf4 {[%clk 0:00:26]}  Rb1 {[%clk 0:00:02]} 45. Rd4 {[%clk 0:00:25]}  Rd1 {[%clk 0:00:00]} 46. Nxd1 {[%clk 0:00:25]} 1-0


[Site "https://www.chess.com"]

[Event "Titled Tuesday Blitz August 08 Late 2023"]
[White "Weetik, Vjacheslav"]
[Black "Ibadov, Dashgyn"]
[WhiteFideId "4153472"]
[BlackFideId "24107514"]
[WhiteElo "2663"]
[BlackElo "2525"]
[Result "0-1"]
[Round "9"]
[TimeControl "180+1"]
[Date "2023.08.08"]
[WhiteClock "0:00:02"]
[BlackClock "0:01:23"]
[Board "37"]

1. d4 {[%clk 0:02:58]}  Nf6 {[%clk 0:02:59]} 2. c4 {[%clk 0:02:58]}  c5 {[%clk 0:02:59]} 3. d5 {[%clk 0:02:58]}  d6 {[%clk 0:03:00]} 4. Nc3 {[%clk 0:02:58]}  g6 {[%clk 0:03:01]} 5. e4 {[%clk 0:02:58]}  Bg7 {[%clk 0:03:01]} 6. Bd3 {[%clk 0:02:57]}  O-O {[%clk 0:03:02]} 7. h3 {[%clk 0:02:57]}  e6 {[%clk 0:03:02]} 8. Nf3 {[%clk 0:02:56]}  exd5 {[%clk 0:03:02]} 9. cxd5 {[%clk 0:02:57]}  Re8 {[%clk 0:03:02]} 10. O-O {[%clk 0:02:54]}  Nbd7 {[%clk 0:03:02]} 11. Bf4 {[%clk 0:02:51]}  c4 {[%clk 0:03:02]} 12. Bc2 {[%clk 0:02:44]}  Nc5 {[%clk 0:03:01]} 13. Re1 {[%clk 0:02:43]}  b5 {[%clk 0:03:01]} 14. a3 {[%clk 0:02:27]}  Qb6 {[%clk 0:02:56]} 15. Qd2 {[%clk 0:02:24]}  Bb7 {[%clk 0:02:37]} 16. Bh6 {[%clk 0:02:22]}  a5 {[%clk 0:02:29]} 17. Bxg7 {[%clk 0:02:21]}  Kxg7 {[%clk 0:02:30]} 18. Qg5 {[%clk 0:00:44]}  b4 {[%clk 0:02:30]} 19. Nh4 {[%clk 0:00:42]}  Re5 {[%clk 0:02:22]} 20. Nf5+ {[%clk 0:00:39]}  Rxf5 {[%clk 0:02:23]} 21. exf5 {[%clk 0:00:39]}  bxc3 {[%clk 0:02:23]} 22. bxc3 {[%clk 0:00:40]}  Qb2 {[%clk 0:01:59]} 23. fxg6 {[%clk 0:00:29]}  Qxc2 {[%clk 0:01:59]} 24. gxh7+ {[%clk 0:00:28]}  Qg6 {[%clk 0:01:57]} 25. Qh4 {[%clk 0:00:17]}  Bxd5 {[%clk 0:01:52]} 26. f3 {[%clk 0:00:13]}  Bxf3 {[%clk 0:01:46]} 27. Qf2 {[%clk 0:00:11]}  Bd5 {[%clk 0:01:38]} 28. Re3 {[%clk 0:00:11]}  Nd3 {[%clk 0:01:29]} 29. Qd2 {[%clk 0:00:07]}  Kxh7 {[%clk 0:01:24]} 30. Rf1 {[%clk 0:00:02]}  Rg8 {[%clk 0:01:23]} 0-1


[Site "https://www.chess.com"]

[Event "Titled Tuesday Blitz August 08 Late 2023"]
[White "Grinev, Valeriy"]
[Black "Weishaeutel, Moritz"]
[WhiteFideId "14117517"]
[BlackFideId "12967300"]
[WhiteElo "2520"]
[BlackElo "2659"]
[Result "1-0"]
[Round "9"]
[TimeControl "180+1"]
[Date "2023.08.08"]
[WhiteClock "0:01:09"]
[BlackClock "0:00:47"]
[Board "38"]

1. e4 {[%clk 0:03:00]}  e5 {[%clk 0:03:00]} 2. Nf3 {[%clk 0:02:58]}  Nf6 {[%clk 0:02:59]} 3. Nxe5 {[%clk 0:02:59]}  Nxe4 {[%clk 0:03:00]} 4. Nf3 {[%clk 0:02:59]}  d5 {[%clk 0:03:00]} 5. Nc3 {[%clk 0:03:00]}  Nxc3 {[%clk 0:02:58]} 6. dxc3 {[%clk 0:03:01]}  c6 {[%clk 0:02:54]} 7. Be3 {[%clk 0:03:01]}  Bd6 {[%clk 0:02:54]} 8. Qd2 {[%clk 0:03:02]}  Bg4 {[%clk 0:02:53]} 9. O-O-O {[%clk 0:03:02]}  O-O {[%clk 0:02:51]} 10. Kb1 {[%clk 0:03:02]}  Nd7 {[%clk 0:02:50]} 11. Be2 {[%clk 0:03:01]}  Re8 {[%clk 0:02:48]} 12. h3 {[%clk 0:02:59]}  Bh5 {[%clk 0:02:45]} 13. g4 {[%clk 0:02:59]}  Bg6 {[%clk 0:02:45]} 14. Nd4 {[%clk 0:02:56]}  Ne5 {[%clk 0:02:43]} 15. f4 {[%clk 0:02:55]}  Nd7 {[%clk 0:02:16]} 16. f5 {[%clk 0:02:54]}  Qe7 {[%clk 0:02:16]} 17. Bf4 {[%clk 0:02:37]}  Bxf4 {[%clk 0:02:11]} 18. Qxf4 {[%clk 0:02:38]}  c5 {[%clk 0:02:11]} 19. fxg6 {[%clk 0:02:24]}  hxg6 {[%clk 0:02:12]} 20. Nb5 {[%clk 0:02:14]}  Qxe2 {[%clk 0:02:12]} 21. Nc7 {[%clk 0:02:13]}  Nf6 {[%clk 0:02:08]} 22. Nxa8 {[%clk 0:02:06]}  Rxa8 {[%clk 0:02:07]} 23. Rhe1 {[%clk 0:02:07]}  Qg2 {[%clk 0:02:04]} 24. g5 {[%clk 0:01:54]}  Ne4 {[%clk 0:02:03]} 25. h4 {[%clk 0:01:41]}  Re8 {[%clk 0:01:46]} 26. a3 {[%clk 0:01:35]}  Re6 {[%clk 0:01:21]} 27. Rg1 {[%clk 0:01:31]}  Qe2 {[%clk 0:01:18]} 28. Rxd5 {[%clk 0:01:27]}  Qc4 {[%clk 0:00:56]} 29. Rd8+ {[%clk 0:01:26]}  Kh7 {[%clk 0:00:56]} 30. Qb8 {[%clk 0:01:17]}  Nxc3+ {[%clk 0:00:48]} 31. bxc3 {[%clk 0:01:14]}  Rb6+ {[%clk 0:00:48]} 32. Kc1 {[%clk 0:01:10]}  Qf4+ {[%clk 0:00:47]} 33. Qxf4 {[%clk 0:01:09]} 1-0


[Site "https://www.chess.com"]

[Event "Titled Tuesday Blitz August 08 Late 2023"]
[White "Santos Flores, Alberto"]
[Black "Kobo, Ori"]
[WhiteFideId "3601234"]
[BlackFideId "2812320"]
[WhiteElo "2556"]
[BlackElo "2728"]
[Result "0-1"]
[Round "9"]
[TimeControl "180+1"]
[Date "2023.08.08"]
[WhiteClock "0:01:36"]
[BlackClock "0:02:04"]
[Board "46"]

1. e4 {[%clk 0:03:00]}  c5 {[%clk 0:02:59]} 2. Nf3 {[%clk 0:03:00]}  d6 {[%clk 0:02:59]} 3. Bb5+ {[%clk 0:03:00]}  Bd7 {[%clk 0:02:58]} 4. Bxd7+ {[%clk 0:02:58]}  Nxd7 {[%clk 0:02:59]} 5. c4 {[%clk 0:02:58]}  Ne5 {[%clk 0:02:59]} 6. d3 {[%clk 0:02:57]}  e6 {[%clk 0:02:55]} 7. Nc3 {[%clk 0:02:55]}  Ne7 {[%clk 0:02:51]} 8. Nxe5 {[%clk 0:02:45]}  dxe5 {[%clk 0:02:52]} 9. O-O {[%clk 0:02:44]}  Nc6 {[%clk 0:02:52]} 10. f4 {[%clk 0:02:44]}  exf4 {[%clk 0:02:50]} 11. Bxf4 {[%clk 0:02:44]}  Bd6 {[%clk 0:02:29]} 12. Qg4 {[%clk 0:02:29]}  Bxf4 {[%clk 0:02:24]} 13. Qxf4 {[%clk 0:02:10]}  O-O {[%clk 0:02:22]} 14. Rf3 {[%clk 0:02:11]}  Qd4+ {[%clk 0:02:16]} 15. Kh1 {[%clk 0:02:07]}  Ne5 {[%clk 0:02:11]} 16. Rg3 {[%clk 0:01:54]}  Nxd3 {[%clk 0:02:07]} 17. Rxd3 {[%clk 0:01:40]}  Qxd3 {[%clk 0:02:08]} 18. e5 {[%clk 0:01:39]}  Rad8 {[%clk 0:02:06]} 19. h4 {[%clk 0:01:36]}  Rd4 {[%clk 0:02:04]} 20. Qg4 {[%clk 0:01:36]}  Rxg4 {[%clk 0:02:04]} 0-1


[Site "https://www.chess.com"]